fUST/lending_fUST_20250910
["ID","MTS","AMOUNT","RATE_DAILY","PERIOD"]
[384586210,1757465452195,-151.0,0.00020455,2]
[384586212,1757465452204,-151.0,0.00020455,2]
[384586214,1757465452213,-151.0,0.00020455,2]
[384586216,1757465452222,-250.0,0.000205,10]
[384586218,1757465452231,-157.17804133,0.00020528,2]
[384586220,1757465452241,-157.0,0.00020528,2]
[384586221,1757465452252,-500.0,0.00020528,2]
[384586223,1757465452261,-500.0,0.00020528,2]
[384586225,1757465452270,-232.0,0.00020528,2]
[384586227,1757465452279,-622.0,0.00020528,2]
[384586229,1757465452288,-282.82,0.00020528,2]
[384586231,1757465452297,-266.0,0.00020528,2]
[384586233,1757465452306,-298.10399173,0.00020528,2]
[384586236,1757465452317,-180.50511339,0.00020528,2]
[384586238,1757465452325,-250.0,0.000206,10]
[384586240,1757465452335,-454.84757715,0.00020601,4]
[384586242,1757465452344,-168.0,0.00020613,2]
[384586243,1757465452354,-3000.0,0.00020616,2]
[384586245,1757465452363,-860.0,0.00020656,2]
[384586247,1757465452372,-250.0,0.000207,10]
[384586249,1757465452381,-168.0,0.00020754,2]
[384586251,1757465452391,-16353.25746225,0.00020755,2]
[384586253,1757465452400,-168.0,0.00020776,2]
[384586255,1757465452409,-250.0,0.000208,10]
[384586257,1757465452418,-239.0,0.00020802,2]
[384586259,1757465452427,-500.0,0.00020802,2]
[384586261,1757465452437,-500.0,0.00020802,2]
[384586263,1757465452446,-2000.0,0.000209,2]
[384586266,1757465452456,-250.0,0.000209,10]
[384586267,1757465452465,-1000.0,0.00020943,5]
[384586269,1757465452474,-250.0,0.00021,10]
[384586271,1757465452484,-500.0,0.00021076,2]
[384586273,1757465452493,-500.0,0.00021076,2]
[384586275,1757465452502,-151.0,0.000211,4]
[384586277,1757465452511,-250.0,0.000211,10]
[384586279,1757465452520,-151.0,0.00021172,2]
[384586281,1757465452530,-168.016316,0.00021172,2]
[384586283,1757465452539,-168.016316,0.00021172,2]
[384586285,1757465452548,-168.016316,0.00021172,2]
[384586287,1757465452557,-168.016316,0.00021172,2]
[384586289,1757465452566,-151.0,0.00021172,2]
[384586291,1757465452575,-151.0,0.00021172,2]
[384586293,1757465452585,-151.0,0.00021172,2]
[384586295,1757465452594,-151.0,0.00021172,2]
[384586297,1757465452604,-151.0,0.00021172,2]
[384586299,1757465452613,-151.0,0.00021172,2]
[384586301,1757465452622,-151.0,0.00021172,2]
[384586303,1757465452632,-151.0,0.00021172,2]
[384586305,1757465452641,-248.736939,0.00021172,2]
[384586307,1757465452651,-248.736939,0.00021172,2]
[384586309,1757465452660,-248.736939,0.00021172,2]
[384586311,1757465452669,-248.736939,0.00021172,2]
[384586313,1757465452678,-151.0,0.00021172,2]
[384586315,1757465452687,-151.0,0.00021172,2]
[384586317,1757465452698,-29159.81,0.00021172,10]
[384586319,1757465452707,-10578.81621497,0.0002118,10]
[384586321,1757465452716,-151.0,0.00021182,2]
[384586323,1757465452726,-151.0,0.00021182,2]
[384586325,1757465452736,-151.0,0.00021182,2]
[384586327,1757465452745,-151.0,0.00021182,2]
[384586329,1757465452755,-151.0,0.00021182,2]
[384586331,1757465452764,-16353.25746225,0.00021182,2]
[384586333,1757465452773,-203.28455737,0.000212,10]
[384586335,1757465452782,-160.0,0.000212,10]
[384586337,1757465452792,-160.0,0.000212,10]
[384586339,1757465452802,-417.15472785,0.000212,10]
[384586341,1757465452811,-960.0,0.00021204,2]
[384586343,1757465452820,-168.0,0.00021257,2]
[384586345,1757465452829,-500.0,0.0002135,2]
[384586347,1757465452839,-500.0,0.0002135,2]
[384586349,1757465452848,-168.0,0.00021443,2]
[384586351,1757465452857,-168.0,0.0002151,2]
[384586353,1757465452870,-168.0,0.00021532,2]
[384586355,1757465452880,-168.0,0.00021608,2]
[384586357,1757465452889,-16353.25746225,0.0002161,2]
[384586358,1757465452899,-540.0,0.00021624,2]
[384586360,1757465452908,-168.0,0.00021642,2]
[384586362,1757465452918,-1613.0,0.0002165,2]
[384586364,1757465452927,-4000.0,0.00021667,4]
[384586366,1757465452937,-1911.790695,0.0002168,5]
[384586369,1757465452947,-1000.0,0.000217,5]
[384586371,1757465452957,-3000.0,0.00021712,2]
[384586373,1757465452966,-1000.0,0.0002172,5]
[384586375,1757465452976,-1000.0,0.0002174,5]
[384586377,1757465452987,-619.49382401,0.00021752,2]
[384586379,1757465452996,-1947.637535,0.0002176,5]
[384586381,1757465453008,-1000.0,0.0002176,5]
[384586383,1757465453018,-168.0,0.00021773,2]
[384586385,1757465453029,-1000.0,0.0002178,5]
[384586387,1757465453038,-1000.0,0.0002178,5]
[384586389,1757465453047,-1000.0,0.000218,5]
[384586391,1757465453056,-1000.0,0.000218,5]
[384586393,1757465453067,-1000.0,0.0002182,5]
[384586395,1757465453076,-1000.0,0.0002182,5]
[384586397,1757465453085,-1000.0,0.0002184,5]
[384586399,1757465453095,-1000.0,0.0002184,5]
[384586401,1757465453104,-1000.0,0.0002186,5]
[384586403,1757465453113,-1000.0,0.0002186,5]
[384586405,1757465453122,-160.57800703,0.00021863,2]
[384586407,1757465453131,-1000.0,0.0002188,5]
[384586408,1757465453141,-1000.0,0.0002188,5]
[384586410,1757465453150,-1000.0,0.000219,5]
[384586412,1757465453159,-1000.0,0.000219,5]
[384586414,1757465453168,-1069.699999,0.000219,2]
[384586416,1757465453178,-153.0,0.00021918,2]
[384586418,1757465453187,-153.0,0.00021918,2]
[384586420,1757465453196,-153.0,0.00021918,2]
[384586422,1757465453205,-153.0,0.00021918,2]
[384586424,1757465453214,-153.0,0.00021918,2]
[384586426,1757465453223,-153.0,0.00021918,2]
[384586428,1757465453232,-153.0,0.00021918,2]
[384586430,1757465453242,-153.0,0.00021918,2]
[384586432,1757465453251,-153.0,0.00021918,2]
[384586434,1757465453262,-153.0,0.00021918,2]
[384586436,1757465453271,-153.0,0.00021918,2]
[384586438,1757465453280,-153.0,0.00021918,2]
[384586440,1757465453289,-153.0,0.00021918,2]
[384586442,1757465453298,-153.0,0.00021918,2]
[384586444,1757465453307,-153.0,0.00021918,2]
[384586446,1757465453317,-1000.0,0.00021918,2]
[384586448,1757465453326,-1000.0,0.00021918,2]
[384586450,1757465453336,-1000.0,0.00021918,2]
[384586452,1757465453345,-1000.0,0.00021918,2]
[384586454,1757465453354,-1000.0,0.00021918,2]
[384586456,1757465453364,-1000.0,0.00021918,2]
[384586458,1757465453373,-1000.0,0.00021918,2]
[384586460,1757465453382,-1000.0,0.00021918,2]
[384586462,1757465453392,-1000.0,0.00021918,2]
[384586464,1757465453401,-1000.0,0.00021918,2]
[384586466,1757465453411,-1000.0,0.00021918,2]
[384586468,1757465453420,-1000.0,0.00021918,2]
[384586470,1757465453430,-1000.0,0.00021918,2]
[384586472,1757465453440,-1000.0,0.00021918,2]
[384586474,1757465453449,-1000.0,0.00021918,2]
[384586476,1757465453459,-1000.0,0.00021918,2]
[384586478,1757465453468,-1000.0,0.00021918,2]
[384586480,1757465453477,-1000.0,0.00021918,2]
[384586482,1757465453486,-1000.0,0.00021918,2]
[384586484,1757465453495,-1000.0,0.00021918,2]
[384586486,1757465453506,-1000.0,0.00021918,2]
[384586488,1757465453516,-1000.0,0.00021918,2]
[384586490,1757465453526,-1000.0,0.00021918,2]
[384586492,1757465453535,-1000.0,0.00021918,2]
[384586494,1757465453545,-1000.0,0.00021918,2]
[384586496,1757465453554,-1000.0,0.00021918,2]
[384586498,1757465453564,-1000.0,0.00021918,2]
[384586500,1757465453573,-1000.0,0.00021918,2]
[384586502,1757465453582,-1000.0,0.00021918,2]
[384586504,1757465453591,-1000.0,0.00021918,2]
[384586506,1757465453600,-1000.0,0.00021918,2]
[384586508,1757465453609,-1000.0,0.00021918,2]
[384586510,1757465453618,-1000.0,0.00021918,2]
[384586513,1757465453631,-1000.0,0.00021918,2]
[384586515,1757465453641,-1000.0,0.00021918,2]
[384586517,1757465453651,-1000.0,0.00021918,2]
[384586519,1757465453660,-1000.0,0.00021918,2]
[384586520,1757465453669,-1000.0,0.00021918,2]
[384586522,1757465453678,-1000.0,0.00021918,2]
[384586524,1757465453687,-1000.0,0.00021918,2]
[384586526,1757465453696,-1000.0,0.00021918,2]
[384586528,1757465453705,-1000.0,0.00021918,2]
[384586530,1757465453715,-1000.0,0.00021918,2]
[384586532,1757465453724,-1000.0,0.00021918,2]
[384586534,1757465453734,-1000.0,0.00021918,2]
[384586536,1757465453743,-1000.0,0.00021918,2]
[384586539,1757465453757,-1000.0,0.00021918,2]
[384586541,1757465453767,-1000.0,0.00021918,2]
[384586543,1757465453776,-1000.0,0.00021918,2]
[384586545,1757465453786,-1000.0,0.00021918,2]
[384586547,1757465453795,-996.261059,0.00021918,2]
[384586549,1757465453805,-1326.63648,0.00021918,2]
[384586551,1757465453815,-1326.63648,0.00021918,2]
[384586553,1757465453824,-1326.63648,0.00021918,2]
[384586555,1757465453833,-1326.63648,0.00021918,2]
[384586557,1757465453842,-1326.63648,0.00021918,2]
[384586559,1757465453852,-1326.63648,0.00021918,2]
[384586561,1757465453861,-1326.63648,0.00021918,2]
[384586563,1757465453871,-1326.63648,0.00021918,2]
[384586565,1757465453881,-1326.63648,0.00021918,2]
[384586567,1757465453890,-1326.63648,0.00021918,2]
[384586569,1757465453899,-1326.63648,0.00021918,2]
[384586571,1757465453909,-1326.63648,0.00021918,2]
[384586573,1757465453918,-1326.63648,0.00021918,2]
[384586575,1757465453928,-1326.63648,0.00021918,2]
[384586577,1757465453937,-1326.63648,0.00021918,2]
[384586579,1757465453946,-1326.63648,0.00021918,2]
[384586581,1757465453955,-1326.63648,0.00021918,7]
[384586583,1757465453965,-1326.63648,0.00021918,7]
[384586584,1757465453974,-1326.63648,0.00021918,7]
[384586587,1757465453986,-1326.63647196,0.00021918,7]
[384586589,1757465453996,-248.736939,0.00021918,7]
[384586591,1757465454006,-248.736939,0.00021918,7]
[384586593,1757465454015,-248.736939,0.00021918,7]
[384586594,1757465454025,-248.736935,0.00021918,7]
[384586596,1757465454034,-151.0,0.0002199,7]
[384586598,1757465454043,-151.0,0.0002199,7]
[384586600,1757465454052,-151.0,0.0002199,7]
[384586602,1757465454063,-151.0,0.0002199,7]
[384586604,1757465454072,-276.697352,0.0002199,7]
[384586605,1757465454081,-151.0,0.00022,8]
[384586606,1757465454090,-718.36,0.00022,2]
[384586607,1757465454100,-151.0,0.00022037,7]
[384586608,1757465454109,-151.0,0.00022037,7]
[384586609,1757465454118,-151.0,0.00022037,7]
[384586610,1757465454127,-246.774864,0.00022037,7]
[384586612,1757465454137,-151.0,0.00022037,7]
[384586614,1757465454147,-151.0,0.00022037,7]
[384586616,1757465454156,-151.0,0.00022037,7]
[384586618,1757465454165,-151.0,0.00022037,7]
[384586620,1757465454175,-227.06103591,0.00022037,7]
[384586622,1757465454183,-14585.14762296,0.00022037,2]
[384586625,1757465454199,-1768.10983929,0.00022037,2]
[384586627,1757465454208,-160.57800701,0.00022164,2]
[384586629,1757465454217,-160.57800703,0.00022164,2]
[384586631,1757465454226,-151.0,0.00022403,3]
[384586633,1757465454235,-16353.25746225,0.00022464,2]
[384586635,1757465454244,-1000.0,0.000225,20]
[384586637,1757465454254,-492.0,0.000225,20]
[384586639,1757465454263,-6828.41,0.000225,7]
[384586641,1757465454274,-3000.0,0.00022808,2]
[384586643,1757465454284,-151.0,0.00022808,7]
[384586655,1757465454390,-168.016316,0.00022808,7]
[384586657,1757465454400,-168.016316,0.00022808,7]
[384586659,1757465454410,-168.016316,0.00022808,7]
[384586661,1757465454419,-168.016316,0.00022808,7]
[384586663,1757465454428,-718.36,0.00022837,2]
[384586665,1757465454438,-1297.8832347,0.00022884,2]
[384586667,1757465454447,-3024.9177894,0.00022884,2]
[384586669,1757465454456,-1357.9036595,0.00022884,2]
[384586671,1757465454465,-16353.25746225,0.00022892,2]
[384586673,1757465454475,-103056.06,0.000229,7]
[384586675,1757465454484,-151.0,0.000229,7]
[384586677,1757465454493,-151.0,0.000229,7]
[384586679,1757465454502,-151.0,0.000229,7]
[384586681,1757465454511,-151.0,0.000229,7]
[384586683,1757465454520,-10578.81621497,0.000229,7]
[384586685,1757465454529,-151.0,0.000229,7]
[384586687,1757465454538,-151.0,0.000229,7]
[384586689,1757465454548,-151.0,0.000229,7]
[384586691,1757465454557,-240.800532,0.000229,7]
[384586693,1757465454567,-28359.12241553,0.000229,3]
[384586695,1757465454577,-203.28455737,0.000229,3]
[384586697,1757465454586,-203.28455737,0.000229,7]
[384586699,1757465454595,-228.59470161,0.000229,3]
[384586701,1757465454605,-132.61014226,0.00023,3]
[384586703,1757465454614,-160.0,0.00023,3]
[384586705,1757465454623,-2006.55,0.00023,2]
[384586707,1757465454632,-2000.0,0.00023,3]
[384586709,1757465454641,-160.0,0.00023,3]
[384586711,1757465454651,-160.0,0.00023,3]
[384586713,1757465454661,-160.0,0.00023,3]
[384586715,1757465454671,-160.0,0.00023,3]
[384586717,1757465454680,-160.0,0.00023,3]
[384586719,1757465454689,-305802.7235295,0.00023,2]
[384591117,1757465583602,77419.4405733,0.00027,120]
[384591123,1757465639726,5000.0,0.000145,9]
[384591139,1757466224276,152.03628886,0.00013157,2]
[384591147,1757466243529,260.041259,0.00013286,2]
[384591148,1757466243949,967.53484692,0.00013287,2]
[384591149,1757466251882,150.0,0.00027397,120]
[384591151,1757466435011,5000.0,0.000145,9]
[384591152,1757466458588,5000.0,0.000145,9]
[384591154,1757466467388,300.0,0.000145,9]
[384591217,1757466632796,-1111.97726415,0.00013462,2]
[384591220,1757466632812,-141.25152447,0.00013462,2]
[384591222,1757466632821,-504.19243272,0.00013598,2]
[384591224,1757466632831,-300.0,0.00013696,2]
[384591225,1757466632841,-380.5790642,0.00013697,2]
[384591227,1757466632850,-152.60317101,0.00013697,2]
[384591233,1757466638814,-347.39682899,0.00013697,2]
[384591234,1757466638825,-500.0,0.00013697,2]
[384591235,1757466638835,-500.0,0.00013697,2]
[384591236,1757466638844,-500.0,0.00013697,2]
[384591237,1757466638853,-500.0,0.00013697,2]
[384591238,1757466638862,-329.27088524,0.00013697,2]
[384591239,1757466638871,-500.0,0.00013697,2]
[384591240,1757466638881,-407.03389699,0.00013697,2]
[384591241,1757466638893,-500.0,0.00013697,2]
[384591242,1757466638903,-339.61617019,0.00013697,2]
[384591243,1757466638912,-500.0,0.00013697,2]
[384591244,1757466638921,-500.0,0.00013697,2]
[384591245,1757466638930,-500.0,0.00013697,2]
[384591246,1757466638941,-500.0,0.00013697,2]
[384591247,1757466638950,-500.0,0.00013697,2]
[384591248,1757466638959,-500.0,0.00013697,2]
[384591249,1757466638968,-500.0,0.00013697,2]
[384591250,1757466638977,-500.0,0.00013697,2]
[384591251,1757466638986,-500.0,0.00013697,2]
[384591252,1757466638996,-500.0,0.00013697,2]
[384591253,1757466639005,-500.0,0.00013697,2]
[384591254,1757466639014,-500.0,0.00013697,2]
[384591255,1757466639023,-500.0,0.00013697,2]
[384591256,1757466639032,-500.0,0.00013697,2]
[384591257,1757466639041,-500.0,0.00013697,2]
[384591258,1757466639051,-500.0,0.00013697,2]
[384591259,1757466639060,-500.0,0.00013697,2]
[384591260,1757466639069,-266.77557329,0.00013697,2]
[384591261,1757466639079,-500.0,0.00013697,2]
[384591262,1757466639087,-500.0,0.00013697,2]
[384591263,1757466639097,-500.0,0.00013697,2]
[384591264,1757466639106,-500.0,0.00013697,2]
[384591265,1757466639115,-500.0,0.00013697,2]
[384591266,1757466639124,-500.0,0.00013697,2]
[384591267,1757466639133,-500.0,0.00013697,2]
[384591268,1757466639143,-500.0,0.00013697,2]
[384591269,1757466639152,-184.57680814,0.00013697,2]
[384591270,1757466639161,-208.24346645,0.00013697,2]
[384591271,1757466639170,-456.10223806,0.00013698,2]
[384591272,1757466639180,-480.0,0.00013698,2]
[384591273,1757466639191,-480.0,0.00013698,2]
[384591274,1757466639200,-480.0,0.00013698,2]
[384591275,1757466639209,-480.0,0.00013698,2]
[384591276,1757466639218,-480.0,0.00013698,2]
[384591277,1757466639227,-480.0,0.00013698,2]
[384591278,1757466639236,-274.08408607,0.00013698,2]
[384591279,1757466639245,-480.0,0.00013698,2]
[384591280,1757466639254,-480.0,0.00013698,2]
[384591281,1757466639263,-480.0,0.00013698,2]
[384591282,1757466639272,-480.07578361,0.00013698,2]
[384591283,1757466639281,-318.82,0.00013698,2]
[384591284,1757466639289,-480.0,0.00013698,2]
[384591285,1757466639298,-480.0,0.00013698,2]
[384591286,1757466639308,-480.0,0.00013698,2]
[384591287,1757466639317,-480.0,0.00013698,2]
[384591288,1757466639326,-480.0,0.00013698,2]
[384591289,1757466639336,-480.0,0.00013698,2]
[384591290,1757466639345,-480.0,0.00013698,2]
[384591291,1757466639355,-480.0,0.00013698,2]
[384591292,1757466639364,-480.0,0.00013698,2]
[384591293,1757466639373,-480.0,0.00013698,2]
[384591294,1757466639382,-480.0,0.00013698,2]
[384591295,1757466639391,-480.0,0.00013698,2]
[384591296,1757466639401,-480.0,0.00013698,2]
[384591297,1757466639412,-480.0,0.00013698,2]
[384591298,1757466639421,-480.0,0.00013698,2]
[384591299,1757466639429,-480.0,0.00013698,2]
[384591300,1757466639438,-480.0,0.00013698,2]
[384591301,1757466639447,-480.0,0.00013698,2]
[384591302,1757466639456,-480.0,0.00013698,2]
[384591303,1757466639585,-480.0,0.00013698,2]
[384591304,1757466639595,-480.0,0.00013698,2]
[384591305,1757466639605,-480.0,0.00013698,2]
[384591306,1757466639614,-480.0,0.00013698,2]
[384591307,1757466639623,-480.0,0.00013698,2]
[384591308,1757466639632,-480.0,0.00013698,2]
[384591309,1757466639641,-482.1792326,0.00013698,2]
[384591310,1757466639651,-167.17,0.00013698,2]
[384591311,1757466639660,-480.0,0.00013698,2]
[384591312,1757466639669,-499.12,0.00013698,2]
[384591313,1757466639678,-480.0,0.00013698,2]
[384591314,1757466639687,-480.0,0.00013698,2]
[384591315,1757466639697,-480.0,0.00013698,2]
[384591316,1757466639706,-480.0,0.00013698,2]
[384591317,1757466639715,-480.0,0.00013698,2]
[384591318,1757466639725,-480.0,0.00013698,2]
[384591319,1757466639734,-480.0,0.00013698,2]
[384591320,1757466639743,-480.0,0.00013698,2]
[384591321,1757466639752,-480.0,0.00013698,2]
[384591322,1757466639761,-480.0,0.00013698,2]
[384591323,1757466639770,-480.0,0.00013698,2]
[384591324,1757466639779,-480.0,0.00013698,2]
[384591325,1757466639788,-480.0,0.00013698,2]
[384591326,1757466639797,-480.0,0.00013698,2]
[384591327,1757466639807,-480.0,0.00013698,2]
[384591328,1757466639815,-480.0,0.00013698,2]
[384591329,1757466639825,-480.0,0.00013698,2]
[384591330,1757466639834,-480.0,0.00013698,2]
[384591331,1757466639843,-480.0,0.00013698,2]
[384591332,1757466639852,-480.0,0.00013698,2]
[384591333,1757466639862,-480.0,0.00013698,2]
[384591334,1757466639871,-481.96661301,0.00013698,2]
[384591335,1757466639880,-480.0,0.00013698,2]
[384591336,1757466639891,-503.59065188,0.00013698,2]
[384591337,1757466639899,-480.0,0.00013698,2]
[384591338,1757466639909,-480.0,0.00013698,2]
[384591339,1757466639918,-480.0,0.00013698,2]
[384591340,1757466639927,-480.0,0.00013698,2]
[384591341,1757466639936,-480.0,0.00013698,2]
[384591342,1757466639946,-480.0,0.00013698,2]
[384591343,1757466639955,-480.0,0.00013698,2]
[384591344,1757466639965,-480.0,0.00013698,2]
[384591345,1757466639974,-480.0,0.00013698,2]
[384591346,1757466639983,-480.0,0.00013698,2]
[384591347,1757466639993,-480.0,0.00013698,2]
[384591348,1757466640002,-480.0,0.00013698,2]
[384591349,1757466640011,-480.0,0.00013698,2]
[384591350,1757466640021,-480.0,0.00013698,2]
[384591351,1757466640030,-480.0,0.00013698,2]
[384591352,1757466640039,-480.0,0.00013698,2]
[384591353,1757466640047,-480.0,0.00013698,2]
[384591354,1757466640057,-480.0,0.00013698,2]
[384591355,1757466640066,-480.0,0.00013698,2]
[384591356,1757466640075,-480.0,0.00013698,2]
[384591357,1757466640085,-480.0,0.00013698,2]
[384591358,1757466640094,-480.0,0.00013698,2]
[384591359,1757466640103,-480.0,0.00013698,2]
[384591360,1757466640112,-480.0,0.00013698,2]
[384591361,1757466640121,-480.0,0.00013698,2]
[384591362,1757466640130,-480.0,0.00013698,2]
[384591363,1757466640139,-480.0,0.00013698,2]
[384591364,1757466640149,-480.0,0.00013698,2]
[384591365,1757466640158,-480.0,0.00013698,2]
[384591366,1757466640167,-480.0,0.00013698,2]
[384591367,1757466640176,-480.0,0.00013698,2]
[384591368,1757466640186,-480.0,0.00013698,2]
[384591369,1757466640195,-480.0,0.00013698,2]
[384591370,1757466640204,-356.54,0.00013698,2]
[384591371,1757466640213,-480.0,0.00013698,2]
[384591372,1757466640222,-480.0,0.00013698,2]
[384591373,1757466640231,-480.0,0.00013698,2]
[384591374,1757466640240,-480.0,0.00013698,2]
[384591375,1757466640250,-480.0,0.00013698,2]
[384591376,1757466640259,-480.0,0.00013698,2]
[384591377,1757466640268,-480.0,0.00013698,2]
[384591378,1757466640277,-480.0,0.00013698,2]
[384591380,1757466640286,-480.0,0.00013698,2]
[384591382,1757466640296,-480.0,0.00013698,2]
[384591384,1757466640306,-480.0,0.00013698,2]
[384591386,1757466640315,-480.0,0.00013698,2]
[384591388,1757466640325,-480.0,0.00013698,2]
[384591392,1757466640334,-480.0,0.00013698,2]
[384591394,1757466640344,-480.0,0.00013698,2]
[384591395,1757466640353,-480.0,0.00013698,2]
[384591396,1757466640362,-527.14082948,0.00013698,2]
[384591397,1757466640371,-480.0,0.00013698,2]
[384591398,1757466640381,-480.0,0.00013698,2]
[384591399,1757466640390,-480.0,0.00013698,2]
[384591400,1757466640399,-480.0,0.00013698,2]
[384591401,1757466640408,-551.0,0.00013698,2]
[384591402,1757466640417,-480.0,0.00013698,2]
[384591403,1757466640426,-547.45,0.00013698,2]
[384591404,1757466640435,-480.0,0.00013698,2]
[384591405,1757466640445,-480.0,0.00013698,2]
[384591406,1757466640454,-311.64,0.00013698,2]
[384591407,1757466640463,-480.0,0.00013698,2]
[384591408,1757466640472,-480.0,0.00013698,2]
[384591409,1757466640481,-480.0,0.00013698,2]
[384591410,1757466640490,-480.0,0.00013698,2]
[384591411,1757466640499,-480.0,0.00013698,2]
[384591412,1757466640509,-480.0,0.00013698,2]
[384591413,1757466640521,-480.0,0.00013698,2]
[384591414,1757466640531,-480.0,0.00013698,2]
[384591415,1757466640540,-480.0,0.00013698,2]
[384591416,1757466640549,-480.0,0.00013698,2]
[384591417,1757466640558,-483.13792894,0.00013698,2]
[384591419,1757466640567,-480.0,0.00013698,2]
[384591421,1757466640577,-480.0,0.00013698,2]
[384591422,1757466640587,-480.0,0.00013698,2]
[384591423,1757466640598,-480.0,0.00013698,2]
[384591424,1757466640608,-480.0,0.00013698,2]
[384591425,1757466640619,-480.0,0.00013698,2]
[384591426,1757466640629,-480.0,0.00013698,2]
[384591427,1757466640638,-480.0,0.00013698,2]
[384591428,1757466640647,-480.0,0.00013698,2]
[384591429,1757466640658,-480.0,0.00013698,2]
[384591430,1757466640668,-480.0,0.00013698,2]
[384591431,1757466640678,-480.0,0.00013698,2]
[384591432,1757466640689,-480.0,0.00013698,2]
[384591433,1757466640699,-480.0,0.00013698,2]
[384591434,1757466640709,-305.12,0.00013698,2]
[384591435,1757466640719,-480.0,0.00013698,2]
[384591436,1757466640728,-480.0,0.00013698,2]
[384591437,1757466640738,-480.0,0.00013698,2]
[384591438,1757466640747,-330.93530943,0.00013698,2]
[384591439,1757466640756,-480.0,0.00013698,2]
[384591440,1757466640765,-480.0,0.00013698,2]
[384591441,1757466640774,-480.0,0.00013698,2]
[384591442,1757466640784,-480.0,0.00013698,2]
[384591443,1757466640794,-480.0,0.00013698,2]
[384591444,1757466640803,-480.0,0.00013698,2]
[384591445,1757466640813,-480.0,0.00013698,2]
[384591446,1757466640822,-549.97,0.00013698,2]
[384591447,1757466640832,-480.0,0.00013698,2]
[384591448,1757466640842,-480.0,0.00013698,2]
[384591449,1757466640851,-480.0,0.00013698,2]
[384591450,1757466640860,-480.0,0.00013698,2]
[384591451,1757466640869,-480.0,0.00013698,2]
[384591452,1757466640878,-480.0,0.00013698,2]
[384591453,1757466640888,-495.3,0.00013698,2]
[384591454,1757466640898,-480.0,0.00013698,2]
[384591455,1757466640907,-480.0,0.00013698,2]
[384591456,1757466640916,-162.51787328,0.00013698,2]
[384591457,1757466640926,-594.26,0.00013698,2]
[384591458,1757466640936,-480.0,0.00013698,2]
[384591459,1757466640945,-482.24831046,0.00013698,2]
[384591460,1757466640954,-621.32,0.00013698,2]
[384591461,1757466640964,-480.0,0.00013698,2]
[384591462,1757466640974,-480.0,0.00013698,2]
[384591463,1757466640986,-480.0,0.00013698,2]
[384591464,1757466640999,-480.0,0.00013698,2]
[384591465,1757466641016,-480.0,0.00013698,2]
[384591466,1757466641028,-477.02700611,0.00013698,2]
[384591467,1757466641044,-480.0,0.00013698,2]
[384591468,1757466641054,-480.0,0.00013698,2]
[384591469,1757466641064,-169.79034972,0.00013698,2]
[384591470,1757466641073,-480.0,0.00013698,2]
[384591471,1757466641082,-480.0,0.00013698,2]
[384591472,1757466641092,-262.25955695,0.00013698,2]
[384591473,1757466641102,-480.0,0.00013698,2]
[384591474,1757466641112,-480.0,0.00013698,2]